fUST/lending_fUST_20240329
["ID","MTS","AMOUNT","RATE_DAILY","PERIOD"]
[320967670,1711723846707,-382.2359383,0.00052052,4]
[320967672,1711723846716,-239.61530325,0.00052052,4]
[320967674,1711723846725,-302.02465838,0.00052052,4]
[320967676,1711723846734,-151.0,0.00052053,7]
[320967678,1711723846743,-151.0,0.00052053,7]
[320967680,1711723846752,-151.0,0.00052053,7]
[320967682,1711723846761,-1000.0,0.00052053,2]
[320967684,1711723846771,-197.12882389,0.00052053,120]
[320967686,1711723846780,-475.35588471,0.00052053,120]
[320967688,1711723846791,-9432.21108222,0.00052054,61]
[320967690,1711723846800,-688.71264987,0.00052054,4]
[320967692,1711723846809,-14292.36580797,0.00052054,4]
[320967694,1711723846819,-500.0,0.00052054,120]
[320967696,1711723846828,-500.0,0.00052054,120]
[320967698,1711723846837,-273.20910696,0.00052054,120]
[320967700,1711723846847,-500.0,0.00052054,120]
[320967702,1711723846856,-500.0,0.00052054,120]
[320967704,1711723846865,-500.0,0.00052054,120]
[320967706,1711723846874,-500.0,0.00052054,120]
[320967707,1711723846883,-500.0,0.00052054,120]
[320967709,1711723846893,-500.0,0.00052054,120]
[320967711,1711723846902,-500.0,0.00052054,120]
[320967713,1711723846911,-500.0,0.00052054,120]
[320967715,1711723846920,-500.0,0.00052054,120]
[320967717,1711723846929,-500.0,0.00052054,120]
[320967719,1711723846938,-1336.88,0.00052054,2]
[320967721,1711723846947,-500.0,0.00052054,120]
[320967723,1711723846957,-500.0,0.00052054,120]
[320967725,1711723846966,-1266.17,0.00052054,120]
[320967727,1711723846976,-500.0,0.00052054,120]
[320967729,1711723846986,-500.0,0.00052054,120]
[320967731,1711723846995,-500.0,0.00052054,120]
[320967733,1711723847005,-500.0,0.00052054,120]
[320967735,1711723847014,-500.0,0.00052054,120]
[320967737,1711723847023,-500.0,0.00052054,120]
[320967738,1711723847032,-505.76903647,0.00052054,120]
[320967739,1711723847042,-500.0,0.00052054,120]
[320967740,1711723847051,-500.0,0.00052054,120]
[320967741,1711723847060,-500.0,0.00052054,120]
[320967742,1711723847069,-592.92539979,0.00052054,120]
[320967743,1711723847078,-500.0,0.00052054,120]
[320967744,1711723847087,-500.0,0.00052054,120]
[320967745,1711723847096,-500.0,0.00052054,120]
[320967746,1711723847105,-500.0,0.00052054,120]
[320967747,1711723847116,-500.0,0.00052054,120]
[320967748,1711723847125,-500.0,0.00052054,120]
[320967749,1711723847134,-500.0,0.00052054,120]
[320967750,1711723847142,-500.0,0.00052054,120]
[320967751,1711723847151,-500.0,0.00052054,120]
[320967752,1711723847160,-500.0,0.00052054,120]
[320967753,1711723847169,-500.0,0.00052054,120]
[320967754,1711723847178,-500.0,0.00052054,120]
[320967755,1711723847187,-500.0,0.00052054,120]
[320967756,1711723847196,-500.0,0.00052054,120]
[320967757,1711723847205,-1293.45,0.00052054,120]
[320967758,1711723847214,-500.0,0.00052054,120]
[320967760,1711723847223,-395.05218298,0.00052054,120]
[320967761,1711723847232,-504.07692239,0.00052054,120]
[320967763,1711723847241,-500.0,0.00052054,120]
[320967765,1711723847250,-631.12,0.00052054,120]
[320967767,1711723847259,-500.0,0.00052054,120]
[320967769,1711723847269,-500.0,0.00052054,120]
[320967771,1711723847278,-500.0,0.00052054,120]
[320967773,1711723847291,-500.0,0.00052054,120]
[320967775,1711723847300,-501.28003229,0.00052054,120]
[320967777,1711723847309,-170.82896559,0.00052054,120]
[320967779,1711723847318,-500.0,0.00052054,120]
[320967781,1711723847328,-500.0,0.00052054,120]
[320967783,1711723847337,-1531.6,0.00052054,120]
[320967785,1711723847347,-777.7,0.00052054,120]
[320967787,1711723847355,-596.76450324,0.00052054,120]
[320967789,1711723847365,-500.0,0.00052054,120]
[320967791,1711723847374,-500.0,0.00052054,120]
[320967793,1711723847384,-500.0,0.00052054,120]
[320967795,1711723847393,-164.13192605,0.00052054,120]
[320967797,1711723847402,-500.0,0.00052054,120]
[320967799,1711723847412,-500.0,0.00052054,120]
[320967801,1711723847421,-151.0,0.00052054,7]
[320967803,1711723847434,-500.0,0.00052054,120]
[320967805,1711723847443,-560.2099108,0.00052054,120]
[320967807,1711723847452,-500.37985486,0.00052054,120]
[320967809,1711723847462,-504.42557196,0.00052054,120]
[320967811,1711723847471,-500.0,0.00052054,120]
[320967813,1711723847480,-500.67422607,0.00052054,120]
[320967815,1711723847490,-2718.37283365,0.00052054,120]
[320967817,1711723847499,-500.0,0.00052054,120]
[320967819,1711723847510,-500.0,0.00052054,120]
[320967821,1711723847519,-2463.25,0.00052054,120]
[320967823,1711723847528,-500.0,0.00052054,60]
[320967825,1711723847537,-500.0,0.00052054,120]
[320967827,1711723847546,-1420.6,0.00052054,120]
[320967828,1711723847555,-500.0,0.00052054,120]
[320967830,1711723847564,-500.0,0.00052054,120]
[320967832,1711723847574,-1082.08,0.00052054,120]
[320967834,1711723847584,-794.93,0.00052054,120]
[320967836,1711723847593,-500.0,0.00052054,120]
[320967838,1711723847603,-500.0,0.00052054,120]
[320967840,1711723847612,-500.0,0.00052054,120]
[320967842,1711723847621,-500.0,0.00052054,120]
[320967844,1711723847631,-500.0,0.00052054,120]
[320967846,1711723847641,-502.12877822,0.00052054,23]
[320967848,1711723847652,-500.0,0.00052054,120]
[320967851,1711723847662,-500.0,0.00052054,120]
[320967853,1711723847671,-1927.62,0.00052054,120]
[320967855,1711723847680,-2148.44,0.00052054,120]
[320967857,1711723847690,-500.0,0.00052054,120]
[320967859,1711723847699,-575.64521674,0.00052054,120]
[320967861,1711723847709,-500.0,0.00052054,120]
[320967862,1711723847718,-931.39,0.00052054,120]
[320967864,1711723847727,-500.0,0.00052054,120]
[320967867,1711723847737,-6964.67,0.00052054,120]
[320967868,1711723847746,-500.0,0.00052054,120]
[320967871,1711723847756,-319.428875,0.00052054,7]
[320967873,1711723847766,-524.71,0.00052054,120]
[320967875,1711723847776,-319.428875,0.00052054,7]
[320967877,1711723847786,-500.0,0.00052054,120]
[320967878,1711723847797,-500.0,0.00052054,120]
[320967880,1711723847807,-500.0,0.00052054,120]
[320967883,1711723847816,-500.0,0.00052054,120]
[320967884,1711723847825,-151.0,0.00052054,7]
[320967886,1711723847835,-500.0,0.00052054,120]
[320967888,1711723847845,-500.0,0.00052054,120]
[320967891,1711723847855,-500.0,0.00052054,120]
[320967892,1711723847864,-500.0,0.00052054,120]
[320967894,1711723847874,-1752.12,0.00052054,120]
[320967896,1711723847884,-500.0,0.00052054,120]
[320967898,1711723847893,-1485.74,0.00052054,120]
[320967901,1711723847903,-500.0,0.00052054,120]
[320967902,1711723847912,-500.0,0.00052054,120]
[320967904,1711723847922,-500.0,0.00052054,120]
[320967906,1711723847931,-500.0,0.00052054,120]
[320967909,1711723847942,-500.0,0.00052054,120]
[320967911,1711723847952,-2689.7,0.00052054,120]
[320967913,1711723847962,-500.0,0.00052054,120]
[320967914,1711723847972,-500.0,0.00052054,120]
[320967916,1711723847982,-500.0,0.00052054,120]
[320967918,1711723847992,-245.94822385,0.00052054,120]
[320967920,1711723848001,-18436.33,0.00052054,90]
[320967922,1711723848011,-500.0,0.00052054,120]
[320967925,1711723848021,-500.0,0.00052054,120]
[320967927,1711723848030,-990.25,0.00052054,120]
[320967928,1711723848040,-500.0,0.00052054,120]
[320967931,1711723848049,-4766.41,0.00052054,21]
[320967933,1711723848058,-382.49318647,0.00052054,120]
[320967935,1711723848067,-500.0,0.00052054,120]
[320967936,1711723848077,-500.0,0.00052054,120]
[320967938,1711723848087,-945.72,0.00052054,120]
[320967940,1711723848096,-500.0,0.00052054,120]
[320967942,1711723848106,-500.0,0.00052054,120]
[320967945,1711723848115,-1499.74,0.00052054,120]
[320967946,1711723848124,-155.5136791,0.00052054,120]
[320967948,1711723848134,-500.0,0.00052054,120]
[320967951,1711723848145,-9946.12,0.00052054,120]
[320967953,1711723848154,-500.0,0.00052054,120]
[320967964,1711723848247,-500.0,0.00052054,120]
[320967966,1711723848257,-413.94970331,0.00052054,120]
[320967968,1711723848266,-500.0,0.00052054,120]
[320967970,1711723848275,-500.0,0.00052054,120]
[320967972,1711723848285,-500.0,0.00052054,120]
[320967974,1711723848295,-306.0,0.00052055,2]
[320967976,1711723848304,-153.0,0.00052055,2]
[320967978,1711723848312,-997.426602,0.00052129,30]
[320967980,1711723848321,-456.283486,0.00052129,30]
[320967982,1711723848330,-611.942307,0.00052172,30]
[320967984,1711723848339,-585.926143,0.00052172,30]
[320967985,1711723848348,-878.889214,0.00052172,30]
[320967988,1711723848358,-153.0,0.00052247,2]
[320967989,1711723848367,-500.0,0.0005247,15]
[320967992,1711723848376,-500.0,0.0005247,15]
[320967993,1711723848386,-500.0,0.0005247,15]
[320967995,1711723848395,-408.64308004,0.0005247,15]
[320967997,1711723848404,-151.0,0.000527,7]
[320967999,1711723848414,-151.0,0.000527,7]
[320968002,1711723848427,-153.0,0.00052712,2]
[320968004,1711723848435,-153.0,0.00052712,2]
[320968006,1711723848445,-153.0,0.00052712,2]
[320968007,1711723848455,-153.0,0.00052712,2]
[320968009,1711723848465,-153.0,0.00052712,2]
[320968011,1711723848474,-153.0,0.00052712,2]
[320968013,1711723848483,-153.0,0.00052712,2]
[320968015,1711723848493,-153.0,0.00052712,2]
[320968017,1711723848504,-153.0,0.00052712,2]
[320968020,1711723848514,-997.426602,0.00052757,30]
[320968021,1711723848523,-456.283486,0.00052757,30]
[320968023,1711723848533,-6796.94499093,0.000528,2]
[320968802,1711724072830,-684.18670088,0.00043332,2]
[320968803,1711724072851,-19837.81329912,0.00043333,2]
[320968806,1711724074797,1224.92695954,0.0002,2]
[320968819,1711724080389,7622.86218349,0.0003,10]
[320968832,1711724154441,-32.39265931,0.00043333,2]
[320968842,1711724302494,-154.98450155,0.00043333,2]
[320968844,1711724375461,2245.25231748,0.00041552,4]
[320968845,1711724384984,1023.0,0.00041553,2]
[320968846,1711724386271,684.18670088,0.00041552,2]
[320968847,1711724399220,4003.87091802,0.00041552,4]
[320968848,1711724404239,550.0,0.00041552,3]
[320968880,1711724843082,-724.14895965,0.00041541,4]
[320968881,1711724843103,-297.3394679,0.00043333,4]
[320968894,1711724931090,289.91003473,0.00041233,2]
[320968905,1711724977914,4003.87091802,0.00041541,4]
[320968930,1711725033534,-1021.64927397,0.00041542,2]
[320968931,1711725033544,-3500.46169632,0.00041542,2]
[320968932,1711725033553,-4206.8922361,0.00041542,2]
[320968933,1711725033562,-289.91003473,0.00046233,2]
[320968934,1711725033571,-267.504321,0.00046575,2]
[320968935,1711725033581,-309.9070279,0.00049398,4]
[320968936,1711725033590,-166.666666,0.00049402,2]
[320968937,1711725033600,-167.658928,0.00049987,2]
[320968938,1711725033609,-1910.29479748,0.00050083,4]
[320968939,1711725033618,-500.0,0.00050084,120]
[320968940,1711725033627,-500.0,0.00050084,120]
[320968943,1711725033637,-408.65698422,0.00050084,120]
[320968945,1711725033646,-507.31,0.00050084,7]
[320968947,1711725033655,-507.31,0.00050084,7]
[320968949,1711725033664,-507.31,0.00050084,7]
[320968951,1711725033673,-507.31,0.00050084,7]
[320968953,1711725033682,-507.31,0.00050084,7]
[320968955,1711725033691,-507.31,0.00050084,7]
[320968957,1711725033700,-507.31,0.00050084,7]
[320968959,1711725033710,-507.31,0.00050084,7]
[320968960,1711725033719,-360.0,0.00050085,2]
[320968968,1711725033822,-42280.71225372,0.00050085,2]
[320968970,1711725033835,-696.68,0.00050085,2]
[320968971,1711725033847,-1613.89380386,0.00050085,2]
[320968972,1711725033859,-12697.58662417,0.00050085,2]
[320969034,1711725038646,-45539.88934955,0.00050085,2]
[320969036,1711725038655,-24890.0,0.00050087,2]
[320969038,1711725038664,-185.135601,0.0005018,120]
[320969040,1711725038673,-1432.461393,0.00050224,2]
[320969042,1711725038682,-443.5215157,0.00050291,2]
[320969044,1711725038691,-197.0030957,0.00050595,2]
[320969046,1711725038700,-166.666666,0.00050749,2]
[320969048,1711725038710,-155.43798253,0.00050992,2]
[320969050,1711725038719,-289.91003473,0.00051233,2]
[320969052,1711725038729,-173.22330138,0.00051393,2]
[320969054,1711725038738,-354.0,0.000515,120]
[320969056,1711725038747,-1000.0,0.000519,2]
[320969058,1711725038758,-170.4085909,0.00051997,4]
[320969060,1711725038768,-991.36301155,0.00051997,2]
[320969062,1711725038777,-339.22220076,0.00051997,2]
[320969064,1711725038788,-368.72154131,0.00051997,4]
[320969066,1711725038802,-325.01431499,0.00051997,4]
[320969068,1711725038811,-2408.63698845,0.00051997,2]
[320969070,1711725038821,-1922.02642136,0.00051997,4]
[320969072,1711725038829,-155.36676347,0.00051997,4]
[320969074,1711725038840,-314.83484695,0.00051998,120]
[320969076,1711725038849,-155.46971887,0.00051998,4]
[320969078,1711725038858,-684.30913271,0.00051998,4]
[320969080,1711725038866,-1611.15839058,0.00051998,4]
[320969082,1711725038875,-154.98450155,0.00051998,4]
[320969084,1711725038884,-2479.79152561,0.00051998,120]
[320969086,1711725038894,-155.80068588,0.00051998,4]
[320969088,1711725038903,-155.99996299,0.00051998,4]
[320969090,1711725038912,-2946.35042879,0.00051998,4]
[320969092,1711725038920,-369.77143074,0.00051998,4]
[320969094,1711725038930,-1027.371088,0.00051998,30]
[320969096,1711725038938,-170.58466675,0.00051998,4]
[320969098,1711725038947,-228.33331082,0.00051998,4]
[320969100,1711725038956,-363.92827338,0.00051998,4]
[320969102,1711725038965,-172.6668912,0.00051998,2]
[320969104,1711725038974,-315.7042279,0.00051998,4]
[320969106,1711725038982,-155.0,0.00051998,4]
[320969108,1711725038991,-282.85116552,0.00051998,4]
[320969110,1711725039001,-406.93883411,0.00051999,120]
[320969112,1711725039010,-497.85270195,0.00051999,120]
[320969114,1711725039019,-500.0,0.00051999,120]
[320969116,1711725039028,-328.1258291,0.00051999,120]
[320969118,1711725039038,-458.78787103,0.00051999,4]
[320969120,1711725039047,-2232.15327083,0.00051999,120]
[320969122,1711725039055,-1064.47894102,0.00052,61]
[320969124,1711725039067,-640.06433835,0.00052,61]
[320969126,1711725039079,-3906.85422379,0.00052,61]
[320969128,1711725039089,-5378.24569692,0.00052,30]
[320969417,1711725040828,-499.77057786,0.00052,30]
[320969420,1711725040840,-3070.70191769,0.00052,30]
[320969433,1711725040904,-34393.39432609,0.00052,30]
[320969438,1711725040918,-21106.20841641,0.00052,30]
[320969441,1711725040932,-2998.22520296,0.00052,30]
[320969446,1711725040947,-24376.7365682,0.00052,30]
[320969810,1711725043800,-1000.0,0.000519,2]
[320969812,1711725043813,-9266.71781312,0.00052,30]
[320969815,1711725043824,-341.82752476,0.00052,30]
[320969828,1711725043936,-5936.34574765,0.00052,30]
[320969830,1711725043947,-7565.18222981,0.00052,30]
[320970195,1711725046850,-4663.54397853,0.00052,30]
[320970197,1711725046859,-159.0,0.00052,120]
[320970199,1711725046868,-1410.148012,0.00052,82]
[320970201,1711725046878,-500.0,0.00052054,120]
[320970203,1711725046887,-1397.22,0.00052054,2]
[320970205,1711725046896,-502.89558518,0.00052054,120]
[320970207,1711725046907,-500.0,0.00052054,120]
[320970209,1711725046917,-500.0,0.00052054,120]
[320970211,1711725046927,-500.0,0.00052054,120]
[320970213,1711725046936,-500.0,0.00052054,120]
[320970215,1711725046946,-500.0,0.00052054,120]
[320970217,1711725046955,-500.0,0.00052054,120]
[320970219,1711725046964,-500.0,0.00052054,120]
[320970221,1711725046974,-500.0,0.00052054,120]
[320970223,1711725046983,-500.0,0.00052054,120]
[320970225,1711725046992,-500.0,0.00052054,120]
[320970227,1711725047002,-500.0,0.00052054,120]
[320970229,1711725047012,-500.0,0.00052054,120]
[320970231,1711725047021,-500.0,0.00052054,120]
[320970233,1711725047030,-500.0,0.00052054,120]
[320970235,1711725047040,-502.49,0.00052054,120]
[320970237,1711725047050,-500.0,0.00052054,120]
[320970239,1711725047059,-500.0,0.00052054,120]
[320970241,1711725047070,-500.0,0.00052054,120]
[320970243,1711725047079,-528.049981,0.00052054,30]
[320970245,1711725047088,-500.816058,0.00052054,120]
[320970247,1711725047098,-500.0,0.00052054,120]
[320970249,1711725047107,-500.0,0.00052054,120]
[320970251,1711725047118,-500.0,0.00052054,120]
[320970253,1711725047127,-500.0,0.00052054,120]
[320970255,1711725047137,-500.0,0.00052054,120]
[320970257,1711725047146,-500.0,0.00052054,120]
[320970259,1711725047156,-500.0,0.00052054,120]
[320970261,1711725047165,-500.0,0.00052054,120]
[320970263,1711725047175,-500.0,0.00052054,120]
[320970265,1711725047186,-500.0,0.00052054,120]
[320970267,1711725047197,-500.0,0.00052054,120]
[320970277,1711725047278,-500.0,0.00052054,120]
[320970278,1711725047289,-500.0,0.00052054,120]
[320970280,1711725047299,-500.0,0.00052054,120]
[320970282,1711725047309,-151.0,0.00052054,7]
[320970284,1711725047319,-500.0,0.00052054,120]
[320970286,1711725047329,-167.667534,0.00052054,7]
[320970288,1711725047339,-500.0,0.00052054,120]
[320970290,1711725047349,-500.0,0.00052054,120]
[320970292,1711725047359,-500.0,0.00052054,120]
[320970294,1711725047369,-500.0,0.00052054,120]
[320970296,1711725047379,-397.12907644,0.00052054,120]
[320970297,1711725047388,-428.97067938,0.00052054,120]
[320970299,1711725047397,-500.0,0.00052054,120]
[320970301,1711725047407,-500.0,0.00052054,120]
[320970303,1711725047416,-500.0,0.00052054,120]
[320970305,1711725047426,-1372.53,0.00052054,120]
[320970307,1711725047436,-500.0,0.00052054,120]
[320970309,1711725047445,-500.0,0.00052054,120]
[320970311,1711725047454,-500.0,0.00052054,120]
[320970313,1711725047462,-500.0,0.00052054,120]
[320970315,1711725047472,-500.0,0.00052054,120]
[320970317,1711725047482,-502.81767342,0.00052054,120]
[320970319,1711725047493,-500.0,0.00052054,120]
[320970321,1711725047502,-500.0,0.00052054,120]
[320970323,1711725047511,-500.0,0.00052054,120]
[320970324,1711725047521,-669.36,0.00052054,120]
[320970326,1711725047531,-1447.57233778,0.00052054,120]
[320970544,1711725050010,817.98589596,0.00041541,4]
[320971152,1711725056145,535.65193395,0.00041541,4]
[320971563,1711725060145,2944.58121734,0.00041541,4]
[320972814,1711725165705,-2557.46721096,0.0004154,4]
[320972815,1711725165726,-1031.97278564,0.00041541,4]
[320972816,1711725165747,-810.5600034,0.00041541,4]
[320972819,1711725239337,-7.42589256,0.00041541,4]
[320972820,1711725239359,-1307.09311598,0.00041541,30]
[320972821,1711725239379,-17739.48099146,0.00041541,4]
[320972824,1711725326303,-545.80644051,0.00037386,4]
[320972825,1711725326325,-186.55506858,0.00037387,4]
[320972826,1711725326345,-1333.0433135,0.00041541,4]
[320972827,1711725326366,-938.59517741,0.00041541,4]
[320972830,1711725384417,-83.88719254,0.00041541,4]
[320972831,1711725384435,-83.88719254,0.00041541,4]
[320972832,1711725384447,-6995.31116905,0.00041541,4]
[320972833,1711725463673,-1022.48236995,0.00041541,4]
[320972834,1711725481993,817.98589596,0.00041541,4]
[320972835,1711725496008,159.53173409,0.00041541,4]
[320972836,1711725533865,-658.45416187,0.00041541,4]
[320972837,1711725551994,817.98589596,0.00041541,4]
[320972838,1711725571994,176.55994217,0.00041541,4]
[320972839,1711725602038,-500.0,0.00041541,4]
[320972840,1711725668542,-141.42595379,0.00041541,4]
[320972841,1711725680043,817.98589596,0.00041541,4]
[320972842,1711725698013,209.58815025,0.00041541,4]
[320972843,1711725735619,-608.39774571,0.00041541,4]
[320972844,1711725748062,493.16619001,0.00041541,4]
[320972871,1711726065988,-526.0,0.00041541,4]
[320972898,1711726232756,-504.56846808,0.00039441,2]
[320972899,1711726232767,-1106.48387305,0.00041626,30]
[320972900,1711726232777,-504.56846808,0.00044441,2]
[320972901,1711726232787,-267.504321,0.00046575,2]
[320972902,1711726232796,-155.457693,0.00049032,2]
[320972991,1711726237857,-11.208973,0.00049032,2]
[320972994,1711726237867,-16366.8817192,0.00049315,120]
[320972997,1711726237876,-504.56846808,0.00049441,2]
[320973000,1711726237885,-716.230696,0.0004976,2]
[320973003,1711726237895,-913.4059954,0.0004988,2]
[320973006,1711726237904,-155.62559264,0.00049897,4]
[320973009,1711726237913,-2814.30754844,0.00049898,2]
[320973012,1711726237925,-4571.57002196,0.00049898,2]
[320973289,1711726240295,-427.17499991,0.00049898,2]
[320973305,1711726240374,-49314.03744708,0.00049898,2]
[320973308,1711726240384,-2805.69875158,0.00049918,61]
[320973311,1711726240393,-361.0,0.00049919,2]
[320973314,1711726240402,-360.41934378,0.0005,4]
[320973317,1711726240412,-4571.5700219,0.00050029,2]
[320973320,1711726240420,-177.096416,0.00050165,2]
[320973322,1711726240430,-166.666666,0.00050368,2]
[320973325,1711726240440,-500.0,0.00050998,120]
[320973328,1711726240452,-500.0,0.00050998,120]
[320973331,1711726240462,-500.0,0.00050998,120]
[320973334,1711726240471,-500.0,0.00050998,120]
[320973336,1711726240482,-500.0,0.00050998,120]
[320973339,1711726240493,-500.0,0.00050998,120]
[320973341,1711726240503,-500.0,0.00050998,120]
[320973345,1711726240513,-500.0,0.00050998,120]
[320973348,1711726240526,-500.0,0.00050998,120]
[320973350,1711726240536,-500.0,0.00050998,120]
[320973352,1711726240546,-500.0,0.00050998,120]
[320973356,1711726240557,-500.0,0.00050998,120]
[320973360,1711726240567,-500.0,0.00050998,120]
[320973362,1711726240576,-500.0,0.00050998,120]
[320973365,1711726240587,-500.0,0.00050998,120]
[320973368,1711726240597,-500.0,0.00050998,120]
[320973371,1711726240606,-500.0,0.00050998,120]
[320973374,1711726240615,-500.0,0.00050998,120]
[320973377,1711726240624,-500.0,0.00050998,120]
[320973380,1711726240634,-500.0,0.00050998,120]
[320973383,1711726240643,-500.0,0.00050998,120]
[320973386,1711726240653,-500.0,0.00050998,120]
[320973389,1711726240662,-554.14098019,0.00050998,120]
[320973391,1711726240672,-500.0,0.00050998,120]
[320973395,1711726240682,-354.91106962,0.00050999,120]
[320973398,1711726240692,-1937.45,0.00050999,7]
[320973400,1711726240702,-1937.45,0.00050999,7]
[320973403,1711726240713,-2.19950067,0.00050999,7]
[320973406,1711726240727,-1935.25049933,0.00050999,7]
[320973408,1711726240738,-1937.45,0.00050999,7]
[320973410,1711726240747,-1937.45,0.00050999,7]
[320973413,1711726240758,-30359.88500537,0.00051,90]
[320973417,1711726240774,-802.9607619,0.00051,90]
[320973420,1711726240789,-1164.90886763,0.00051,90]
[320973425,1711726240804,-10275.32471604,0.00051,90]
[320973723,1711726242988,-23476.64338594,0.00051,90]
[320973725,1711726242999,-2292.81981303,0.00051,90]
[320974058,1711726246005,-180.0,0.00050998,120]
[320974059,1711726246015,-7049.27612848,0.00051,90]
[320978901,1711726451829,-7423.0,0.00041626,4]
[320979038,1711727433640,-200.0,0.0004,2]
[320979040,1711727433650,-200.0,0.00045105,2]
[320979042,1711727433660,-166.666666,0.00048565,2]
[320979044,1711727433670,-219.9873849,0.00049286,2]
[320979047,1711727433683,-505.45206414,0.00049286,2]
[320979575,1711727438673,-3262.91383146,0.00049286,2]
[320979576,1711727438683,-358.115348,0.00049358,2]
[320979577,1711727438692,-60.45946627,0.0004949,2]
[320979578,1711727438705,-3030.38416283,0.0004949,2]
[320979579,1711727438714,-166.666666,0.00049889,2]
[320979580,1711727438723,-151.0,0.0004999,2]
[320979581,1711727438732,-610.41217118,0.0005,2]
[320979582,1711727438745,-389.58782882,0.0005,2]
[320979583,1711727438754,-1518.97615434,0.00050182,4]
[320979584,1711727438763,-200.0,0.00050209,2]
[320979585,1711727438773,-1086.18251796,0.00050351,30]
[320979586,1711727438784,-553.91134726,0.00050351,30]
[320979692,1711727440605,-1224.99613478,0.00050351,30]
[320979694,1711727440614,-274.9371947,0.000509,2]
[320979696,1711727440626,-725.0628053,0.000509,2]
[320979699,1711727440637,-151.0,0.000509,2]
[320979700,1711727440646,-177.7938113,0.00050956,4]
[320979702,1711727440656,-500.82920371,0.00050956,4]
[320979705,1711727440666,-209.56779885,0.00050956,2]
[320979707,1711727440675,-603.12853459,0.00050957,4]
[320979709,1711727440684,-502.64247285,0.00050958,120]
[320979711,1711727440694,-500.0,0.00050958,120]
[320979712,1711727440703,-1090.71,0.00050958,120]
[320979714,1711727440714,-11288.77,0.00050958,120]
[320979716,1711727440723,-500.0,0.00050958,120]
[320979718,1711727440733,-538.25311586,0.00050958,120]
[320979721,1711727440742,-712.74225749,0.00050958,120]
[320979723,1711727440754,-354.34774251,0.00050958,120]
[320979725,1711727440764,-1555.9123229,0.00050958,120]
[320980053,1711727443914,-69.2376771,0.00050958,120]
[320980055,1711727443924,-1534.18,0.00050958,120]
[320980057,1711727443933,-885.93,0.00050958,120]
[320980059,1711727443942,-500.0,0.00050958,120]
[320980061,1711727443956,-1085.02,0.00050958,120]
[320980063,1711727443968,-301.95888371,0.00050958,120]
[320980268,1711727446146,-346.51,0.00050958,120]
[320980304,1711727446477,-324.68932142,0.00050958,120]
[320980307,1711727446490,-6297.27179487,0.00050958,120]
[320980309,1711727446500,-500.0,0.00050958,120]
[320980311,1711727446509,-500.0,0.00050958,120]
[320980313,1711727446518,-500.0,0.00050958,120]
[320980315,1711727446527,-500.0,0.00050996,120]
[320980317,1711727446537,-830.67030105,0.00050996,4]
[320980319,1711727446547,-500.0,0.00050996,120]
[320980321,1711727446557,-500.0,0.00050996,120]
[320980323,1711727446566,-192.11766416,0.00050996,4]
[320980324,1711727446575,-500.0,0.00050996,120]
[320980327,1711727446584,-500.0,0.00050996,120]
[320980328,1711727446594,-500.0,0.00050996,120]
[320980330,1711727446603,-500.0,0.00050996,120]
[320980333,1711727446612,-500.0,0.00050996,120]
[320980334,1711727446622,-500.0,0.00050996,120]
[320980337,1711727446631,-500.0,0.00050996,120]
[320980338,1711727446640,-500.0,0.00050996,120]
[320980340,1711727446650,-500.65743084,0.00050996,120]
[320980343,1711727446659,-603.22900611,0.00050996,120]
[320980344,1711727446668,-500.0,0.00050996,120]